bitfinex-derivatives/quotes_SOLF0:USTF0_20250318
["timestamp","ask_amount","ask_price","bid_price","bid_amount"]
[1742325675899,11.49835092,124.07,124.05,8.0624]
[1742325676094,40.62468576,124.06,124.05,8.0624]
[1742325677391,40.62468576,124.06,124.04,8.11558374]
[1742325677592,11.44468576,124.05,124.04,0.05268374]
[1742325678003,11.44468576,124.05,124.01,8.065]
[1742325678004,8.0637,124.04,124.01,8.065]
[1742325678302,11.44468576,124.02,124.01,8.065]
[1742325678502,40.62468576,124.02,124.01,8.065]
[1742325680000,40.62468576,124.02,124.0,0.02749283]
[1742325680204,29.18,124.02,124.0,0.02749283]
[1742325680496,29.18,124.02,124.01,8.0653]
[1742325680698,0.05794927,124.03,124.0,0.02749283]
[1742325681003,0.05794927,124.03,124.02,8.0646]
[1742325681704,11.50263503,124.03,124.01,8.0649]
[1742325682005,11.50263503,124.03,124.0,0.02749283]
[1742325682804,11.50263503,124.03,124.02,8.0646]
[1742325683399,11.50263503,124.03,124.01,8.0649]
[1742325683600,11.44468576,124.02,124.0,0.02749283]
[1742325683906,11.44468576,124.02,124.0,8.09289283]
[1742325684203,11.44468576,124.02,124.0,0.02749283]
[1742325684603,40.62468576,124.02,124.0,0.02749283]
[1742325684903,40.62468576,124.02,124.01,8.0653]
[1742325686305,40.62468576,124.02,124.0,8.09309283]
[1742325686498,11.44468576,124.01,124.0,8.09309283]
[1742325686704,11.44468576,124.01,124.0,0.02749283]
[1742325687009,11.44468576,124.01,124.0,8.09339283]
[1742325687608,19.50998576,124.01,124.0,0.02749283]
[1742325689108,11.44468576,124.01,124.0,0.02749283]
[1742325689708,11.44468576,124.01,124.0,8.09339283]
[1742325692008,11.44468576,124.01,124.0,0.02749283]
[1742325692914,19.50998576,124.01,124.0,0.02749283]
[1742325698719,19.50468576,124.01,123.93,6.5135]
[1742325698924,11.44468576,123.95,123.93,6.5135]
[1742325699125,40.62468576,123.96,123.94,8.0695]
[1742325699326,29.18,123.96,123.93,6.5135]
[1742325699923,29.23694523,123.96,123.93,6.5135]
[1742325700326,40.68163099,123.96,123.93,6.5135]
[1742325700625,40.68163099,123.96,123.93,14.5837]
[1742325700826,40.68163099,123.96,123.93,6.5135]
[1742325701324,40.68163099,123.96,123.94,8.0695]
[1742325701515,29.23694523,123.96,123.94,8.0695]
[1742325702223,29.23694523,123.96,123.93,17.95818576]
[1742325703520,29.23694523,123.96,123.93,6.5135]
[1742325703825,40.68163099,123.96,123.93,6.5135]
[1742325706627,29.23694523,123.96,123.93,6.5135]
[1742325709340,40.68163099,123.96,123.93,6.5135]
[1742325709927,40.68163099,123.96,123.95,8.0692]
[1742325710832,29.23694523,123.96,123.95,8.0692]
[1742325712629,40.68163099,123.96,123.95,8.0692]
[1742325716134,40.68163099,123.96,123.94,8.0696]
[1742325718036,40.68163099,123.96,123.93,2.1785]
[1742325718637,11.44468576,123.94,123.86,268.2942]
[1742325718826,11.44468576,123.92,123.87,15.51948576]
[1742325719028,11.44468576,123.92,123.9,8.072]
[1742325719235,0.05485802,123.91,123.87,15.51948576]
[1742325719435,0.05485802,123.91,123.89,11.44468576]
[1742325719629,0.05485802,123.91,123.9,8.0724]
[1742325719833,29.18,123.97,123.9,11.44468576]
[1742325720027,40.62468576,123.97,123.92,11.44468576]
[1742325720331,40.62468576,123.97,123.94,8.0695]
[1742325720631,29.18,123.97,123.93,13.58598576]
[1742325720832,29.18,123.97,123.95,8.0691]
[1742325721033,0.05667966,123.96,123.94,0.05091296]
[1742325721528,0.05667966,123.96,123.94,8.12041296]
[1742325721941,0.05667966,123.96,123.94,0.05091296]
[1742325722538,0.05667966,123.96,123.94,8.12041296]
[1742325724839,0.05667966,123.96,123.95,8.0692]
[1742325726940,29.18,123.97,123.96,8.0685]
[1742325727337,11.44468576,123.98,123.94,11.49559872]
[1742325727636,11.44468576,123.98,123.97,8.0679]
[1742325728035,11.44468576,123.99,123.97,8.0679]
[1742325728237,11.50344948,123.99,123.97,8.0679]
[1742325728438,11.50344948,123.99,123.97,8.12654051]
[1742325728738,11.50344948,123.99,123.97,0.05864051]
[1742325728939,11.44468576,123.98,123.97,0.05864051]
[1742325729841,40.62468576,123.98,123.97,0.05864051]
[1742325732640,48.69188576,123.98,123.97,0.05864051]
[1742325733844,40.62468576,123.98,123.97,0.05864051]
[1742325734437,48.69188576,123.98,123.97,0.05864051]
[1742325736941,11.44468576,123.95,123.94,8.0695]
[1742325738641,29.23953272,123.96,123.94,8.0695]
[1742325738848,29.23953272,123.96,123.93,2.19360463]
[1742325740048,29.23953272,123.96,123.93,268.41360463]
[1742325740550,29.23953272,123.96,123.94,8.0694]
[1742325740847,11.44468576,123.95,123.93,266.27230463]
[1742325741052,37.2498,123.94,123.93,266.27230463]
[1742325741347,37.2498,123.94,123.93,0.05230463]
[1742325741749,48.69448576,123.94,123.93,0.05230463]
[1742325742951,8.0712,123.92,123.9,8.0721]
[1742325743147,11.44468576,123.91,123.9,8.0721]
[1742325744147,11.44468576,123.91,123.89,274.2925]
[1742325744349,11.44468576,123.9,123.89,266.22]
[1742325744543,11.44468576,123.9,123.89,274.2931]
[1742325746450,11.44468576,123.91,123.9,8.0723]
[1742325746648,11.44468576,123.91,123.87,2.1269]
[1742325746843,11.44468576,123.88,123.87,2.1269]
[1742325747451,11.44468576,123.88,123.87,10.2008]
[1742325747652,11.50456686,123.89,123.87,2.1269]
[1742325747853,11.50456686,123.89,123.88,8.0737]
[1742325750954,29.2,123.83,123.81,266.3]
[1742325751753,29.2,123.83,123.81,274.378]
[1742325751949,29.2,123.83,123.81,266.3]
[1742325752860,19.52128576,123.84,123.81,266.3]
[1742325753056,29.2,123.83,123.81,266.3]
[1742325753561,29.2,123.83,123.81,274.378]
[1742325753953,29.2,123.83,123.81,266.3]
[1742325754155,37.277,123.83,123.81,266.3]
[1742325754454,29.2,123.83,123.81,266.3]
[1742325754654,29.2,123.83,123.81,274.378]
[1742325755660,29.2,123.83,123.81,266.3]
[1742325756263,29.2,123.83,123.81,274.3781]
[1742325757157,29.2,123.83,123.82,8.0776]
[1742325758265,29.2,123.83,123.81,274.3779]
[1742325758758,37.2771,123.83,123.81,266.3]
[1742325759564,37.2771,123.83,123.81,274.3781]
[1742325759767,29.2,123.83,123.81,274.3781]
[1742325760360,37.2774,123.83,123.81,266.3]
[1742325761263,11.44468576,123.82,123.81,266.3]
[1742325761866,19.52228576,123.82,123.81,266.3]
[1742325762373,19.52228576,123.82,123.79,10.265]
[1742325762670,29.2,123.81,123.79,10.265]
[1742325765364,29.2,123.81,123.8,8.0789]
[1742325765675,0.05886007,123.82,123.79,2.1857]
[1742325765872,0.05886007,123.82,123.81,8.0783]
[1742325767771,11.50354583,123.82,123.81,8.0783]
[1742325770363,40.72354583,123.82,123.81,8.0783]
[1742325772675,11.50354583,123.82,123.81,8.0783]
[1742325773975,0.05886007,123.82,123.81,8.0783]
[1742325775778,40.66468576,123.84,123.83,8.077]
[1742325776174,40.66468576,123.85,123.84,8.0763]
[1742325776378,40.66468576,123.86,123.8,11.44468576]
[1742325776784,0.06061979,123.84,123.83,8.077]
[1742325778983,0.06061979,123.84,123.83,276.634]
[1742325779183,11.44468576,123.88,123.87,8.0744]
[1742325779383,40.66468576,123.88,123.87,8.0744]
[1742325780275,11.44468576,123.89,123.88,8.0737]
[1742325780471,11.50403492,123.89,123.88,8.0737]
[1742325780681,11.44468576,123.89,123.88,8.0737]
[1742325781377,11.44468576,123.89,123.87,8.12803887]
[1742325781677,40.66468576,123.88,123.87,0.05403887]
[1742325783082,48.73838576,123.88,123.87,0.05403887]
[1742325784288,40.66468576,123.88,123.87,0.05403887]
[1742325785279,48.73838576,123.88,123.87,0.05403887]
[1742325789786,40.66468576,123.88,123.87,0.05403887]
[1742325789985,40.66468576,123.88,123.87,8.12843887]
[1742325791990,40.66468576,123.88,123.87,0.05403887]
[1742325792189,48.73838576,123.88,123.87,0.05403887]
[1742325793283,40.66468576,123.88,123.87,0.05403887]
[1742325794988,48.73838576,123.88,123.87,0.05403887]
[1742325795285,40.66468576,123.88,123.83,268.557]
[1742325795593,11.44468576,123.86,123.83,268.557]
[1742325795791,29.24,123.85,123.83,268.557]
[1742325796487,29.29931393,123.85,123.84,8.0763]
[1742325801692,37.37501393,123.85,123.83,276.69409276]
[1742325801993,37.37501393,123.85,123.83,266.56039276]
[1742325801994,11.44468576,123.84,123.83,266.56039276]
[1742325802390,11.44468576,123.84,123.83,274.63739276]
[1742325803291,11.44468576,123.84,123.83,8.13739276]
[1742325805189,29.29931393,123.85,123.84,8.0763]
[1742325809599,0.05931393,123.85,123.84,8.0763]
[1742325809799,0.05931393,123.85,123.84,10.1406]
[1742325810198,11.44468576,123.88,123.87,8.0744]
[1742325810396,40.64468576,123.88,123.87,8.0744]
[1742325811089,40.64468576,123.88,123.86,8.0747]
[1742325811495,40.70405835,123.88,123.86,8.12713586]
[1742325812295,11.44468576,123.87,123.86,8.12713586]
[1742325813296,11.44468576,123.87,123.86,0.05243586]
[1742325813693,11.44468576,123.87,123.86,8.12743586]
[1742325826703,19.51908576,123.87,123.86,0.05243586]
[1742325829502,11.44468576,123.87,123.86,8.12743586]
[1742325840414,29.25937259,123.88,123.87,8.0744]
[1742325840909,0.05937259,123.88,123.87,8.0744]
[1742325841111,29.2,123.89,123.88,8.0737]
[1742325841616,11.44468576,123.9,123.89,8.0731]
[1742325849621,19.51708576,123.9,123.88,8.0733]
[1742325849822,11.44468576,123.89,123.88,8.0733]
[1742325850818,40.64468576,123.89,123.86,0.05243586]
[1742325851124,11.44468576,123.87,123.86,0.05243586]
[1742325851323,11.44468576,123.87,123.86,8.12713586]
[1742325852820,11.49641133,123.88,123.87,8.0744]
[1742325853627,0.05172557,123.88,123.87,8.0744]
[1742325855625,11.49641133,123.88,123.86,8.12713586]
[1742325855825,11.49641133,123.88,123.86,0.05243586]
[1742325856126,11.49641133,123.88,123.87,8.0744]
[1742325857726,0.05172557,123.88,123.87,8.0744]
[1742325857921,0.05172557,123.88,123.86,0.05243586]
[1742325857922,11.49641133,123.88,123.86,8.12723586]
[1742325858226,11.49641133,123.88,123.86,0.05243586]
[1742325858625,19.57041133,123.88,123.86,8.12723586]
[1742325858822,11.49641133,123.88,123.86,0.05243586]
[1742325859136,29.2,123.87,123.86,0.05243586]
[1742325860024,37.2744,123.87,123.86,0.05243586]
[1742325860425,48.71908576,123.87,123.86,0.05243586]
[1742325863027,40.64468576,123.87,123.86,0.05243586]
[1742325863430,40.64468576,123.87,123.86,8.12743586]
[1742325869032,40.64468576,123.87,123.86,0.05243586]
[1742325869033,48.71908576,123.87,123.86,0.05243586]
[1742325872033,40.64468576,123.87,123.86,8.12743586]
[1742325873234,40.64468576,123.87,123.86,0.05243586]
[1742325873235,48.71908576,123.87,123.86,0.05243586]
[1742325881853,48.71908576,123.87,123.86,8.12743586]
[1742325882244,40.64468576,123.87,123.86,8.12743586]
[1742325883656,40.64468576,123.87,123.86,0.05243586]
[1742325883954,48.71908576,123.87,123.86,0.05243586]
[1742325896758,29.2,123.87,123.86,0.05243586]
[1742325897063,29.2,123.87,123.86,8.12743586]
[1742325897561,0.05172557,123.88,123.87,8.0744]
[1742325900261,44.78867086,123.9,123.89,8.0731]
[1742325900762,11.19716771,123.9,123.89,8.0731]
[1742325900963,11.44468576,123.9,123.89,8.0731]
[1742325905566,11.44468576,123.9,123.88,8.0734]
[1742325906467,40.64468576,123.9,123.89,8.0731]
[1742325907665,40.64468576,123.9,123.88,8.0734]
[1742325909072,40.64468576,123.9,123.89,8.0731]
[1742325910477,40.64468576,123.9,123.87,2.0953]
[1742325910770,11.44468576,123.88,123.86,0.05243586]
[1742325911169,11.49655156,123.88,123.86,0.05243586]
[1742325911469,11.44468576,123.87,123.86,0.05243586]
[1742325911870,48.69908576,123.87,123.86,0.05243586]
[1742325912565,40.62468576,123.87,123.86,0.05243586]
[1742325913070,48.69908576,123.87,123.86,0.05243586]
[1742325914173,8.0761,123.85,123.83,266.42]
[1742325914371,40.62468576,123.84,123.83,266.42]
[1742325914575,40.62468576,123.84,123.8,2.1428]
[1742325914774,11.44468576,123.82,123.79,266.4]
[1742325914973,40.62468576,123.81,123.79,266.4]
[1742325915173,40.62468576,123.81,123.79,274.4792]
[1742325915374,40.68023718,123.81,123.79,274.5383294]
[1742325916374,11.44468576,123.8,123.79,266.4591294]
[1742325916568,11.44468576,123.8,123.79,0.0591294]
[1742325916976,11.44468576,123.8,123.76,8.0815]
[1742325917176,11.44468576,123.77,123.76,8.0815]
[1742325917476,11.44468576,123.77,123.75,274.4817]
[1742325917678,11.44468576,123.76,123.75,8.0817]
[1742325919180,11.44468576,123.76,123.74,12.4891723]
[1742325919372,11.44468576,123.76,123.74,4.4066723]
[1742325919773,11.44468576,123.76,123.75,8.0822]
[1742325921878,11.44468576,123.76,123.74,12.4892723]
[1742325922077,29.2,123.75,123.74,12.4892723]
[1742325927979,29.2,123.75,123.74,8.1413723]
[1742325928190,29.2,123.75,123.74,0.0587723]
[1742325928381,40.64468576,123.75,123.74,0.0587723]
[1742325928884,40.64468576,123.75,123.74,8.1416723]
[1742325929081,29.2,123.75,123.74,8.1416723]
[1742325929281,40.64468576,123.81,123.74,40.70345806]
[1742325929484,11.44468576,123.8,123.75,11.44468576]
[1742325929676,40.64468576,123.81,123.76,13.48868576]
[1742325929875,11.44468576,123.8,123.76,2.044]
[1742325930178,11.44468576,123.79,123.78,8.0799]
[1742325934691,11.44468576,123.79,123.77,8.13779039]
[1742325934893,40.64468576,123.78,123.77,0.05719039]
[1742325935994,48.72498576,123.78,123.77,0.05719039]
[1742325937387,40.64468576,123.78,123.77,0.05719039]
[1742325937702,29.2,123.78,123.77,8.13809039]
[1742325939794,11.44468576,123.79,123.78,8.0803]
[1742325940598,40.70355917,123.8,123.77,0.05719039]
[1742325941095,11.50355917,123.8,123.79,8.0796]
[1742325941786,11.50355917,123.8,123.77,0.05719039]
[1742325942186,19.58285917,123.8,123.77,8.13759039]
[1742325944197,8.0796,123.79,123.77,8.13759039]
[1742325945097,19.58285917,123.8,123.77,8.13759039]
[1742325945294,19.58285917,123.8,123.78,8.0802]
[1742325946799,11.50355917,123.8,123.78,8.0802]
[1742325947998,19.58265917,123.8,123.78,8.0802]
[1742325950699,37.2796,123.79,123.77,8.13789039]
[1742325951199,29.2,123.79,123.77,0.05719039]
[1742325952005,19.52498576,123.78,123.77,0.05719039]
[1742325952907,11.44468576,123.78,123.77,0.05719039]
[1742325953298,11.44468576,123.78,123.77,8.13809039]
[1742325956206,48.72438576,123.79,123.77,8.13809039]
[1742325959508,8.0803,123.78,123.77,0.05719039]
[1742325959907,40.64468576,123.79,123.77,0.05719039]
[1742325960104,48.72458576,123.79,123.77,8.13769039]
[1742325960305,40.64468576,123.79,123.77,0.05719039]
[1742325960905,48.72458576,123.79,123.77,8.13779039]
[1742325961308,8.0803,123.78,123.77,0.05719039]
[1742325962103,8.0818,123.76,123.73,266.44]
[1742325962303,11.44468576,123.75,123.73,266.44]
[1742325962507,29.2,123.76,123.73,266.44]
[1742325962906,11.44468576,123.77,123.76,8.0816]
[1742325963606,0.05568229,123.78,123.77,8.0809]
[1742325963812,0.05568229,123.78,123.75,0.0542272]
[1742325964108,40.64468576,123.77,123.75,0.0542272]
[1742325964714,48.72568576,123.77,123.75,8.1359272]
[1742325965011,48.72568576,123.77,123.75,0.0542272]
[1742325965207,8.0816,123.76,123.75,0.0542272]
[1742325966004,19.52628576,123.76,123.75,0.0542272]
[1742325968217,8.0842,123.72,123.7,266.62]
[1742325968619,11.44468576,123.73,123.7,266.62]
[1742325968819,19.52858576,123.73,123.7,266.62]
[1742325969014,11.44468576,123.73,123.7,266.62]
[1742325969317,37.2829,123.74,123.7,278.06468576]
[1742325969517,0.05672963,123.73,123.71,2.0356]
[1742325970315,8.14032963,123.73,123.71,2.0356]
[1742325971016,8.0842,123.72,123.71,2.0356]
[1742325972019,8.14062963,123.73,123.71,2.0356]
[1742325972519,8.0842,123.72,123.71,2.0356]
[1742325973219,11.44468576,123.72,123.7,266.67162712]
[1742325973716,19.52918576,123.72,123.7,266.67162712]
[1742325973922,11.44468576,123.72,123.7,266.67162712]
[1742325974218,11.50141539,123.73,123.7,266.67162712]
[1742325974422,11.50141539,123.73,123.71,8.0848]
[1742325974623,11.50141539,123.73,123.7,266.67162712]
[1742325975620,11.50141539,123.73,123.7,274.75682712]
[1742325975920,0.05672963,123.73,123.7,278.11631288]
[1742325976120,0.05672963,123.73,123.71,2.0206]
[1742325976421,0.05672963,123.73,123.72,8.0842]
[1742325977411,11.44468576,123.77,123.72,13.54338576]
[1742325978113,19.52588576,123.77,123.74,8.0826]
[1742325978318,11.44468576,123.76,123.74,8.0826]
[1742325978618,11.44468576,123.76,123.74,8.13564397]
[1742325979823,11.44468576,123.76,123.75,8.0822]
[1742325981123,19.52628576,123.76,123.74,8.13554397]
[1742325982124,11.44468576,123.76,123.75,8.0822]
[1742325982916,0.06201696,123.77,123.74,11.49772973]
[1742325983225,0.06201696,123.77,123.75,2.1415]
[1742325983717,0.06201696,123.77,123.76,8.0816]
[1742325988321,11.44468576,123.79,123.78,8.0803]
[1742325988519,29.2,123.79,123.78,8.0803]
[1742325989627,0.05179151,123.8,123.77,0.05252491]
[1742325990126,0.05179151,123.8,123.77,13.68861067]
[1742325990822,0.05179151,123.8,123.79,8.0796]
[1742325998732,29.2,123.82,123.78,11.44468576]
[1742325999528,29.18,123.83,123.8,11.44468576]
[1742326000026,48.70088576,123.85,123.83,8.0767]
[1742326000233,40.62468576,123.85,123.83,8.0767]
[1742326000420,40.62468576,123.85,123.8,11.50557744]
[1742326000421,11.50509663,123.85,123.8,11.44468576]
[1742326000622,29.24041087,123.85,123.83,0.05813212]
[1742326000932,6.99088,123.87,123.85,8.0752]
[1742326001133,11.44468576,123.86,123.83,0.0591429]
[1742326002031,55.74887531,123.87,123.84,8.076]
[1742326003330,5.72234288,123.85,123.83,8.1359429]
[1742326003628,11.44468576,123.85,123.83,8.1359429]
[1742326004023,19.51998576,123.86,123.83,8.1359429]
[1742326005527,11.44468576,123.85,123.83,0.0591429]
[1742326005732,40.62468576,123.84,123.83,0.0591429]
[1742326006529,48.70098576,123.84,123.83,0.0591429]
[1742326008731,8.0786,123.81,123.79,8.0794]
[1742326008933,11.44468576,123.81,123.78,270.7203]
[1742326009239,11.44468576,123.81,123.78,278.8002]
[1742326009635,8.0789,123.8,123.78,278.8002]
[1742326009937,8.13719384,123.8,123.78,278.85855316]
[1742326010136,0.05829384,123.8,123.78,278.85855316]
[1742326010336,11.5029796,123.8,123.78,274.65825316]
[1742326011436,11.5029796,123.8,123.79,8.0796]
[1742326011632,0.05829384,123.8,123.79,8.0796]
[1742326011836,11.5029796,123.8,123.78,266.57835316]
[1742326012032,48.7622796,123.8,123.78,266.57835316]
[1742326014636,8.0796,123.79,123.78,266.57835316]
[1742326015139,40.6829796,123.8,123.78,266.57835316]
[1742326015338,29.23829384,123.8,123.78,266.57835316]
[1742326015943,0.05829384,123.8,123.78,266.57835316]
[1742326016144,48.70198576,123.83,123.78,278.02303892]
[1742326016343,48.70198576,123.83,123.78,277.96468576]
[1742326017245,48.70198576,123.83,123.81,8.0782]
[1742326017450,0.05208659,123.82,123.81,8.0782]
[1742326020246,40.62468576,123.85,123.8,13.57388576]
[1742326020448,29.18,123.85,123.82,11.44468576]
[1742326020852,8.075,123.86,123.84,8.0762]
[1742326021048,6.99088,123.87,123.83,11.44468576]
[1742326021247,6.99088,123.87,123.84,11.44468576]
[1742326021448,6.99088,123.87,123.86,8.075]
[1742326021849,7.04706297,123.87,123.86,8.075]
[1742326023854,7.04706297,123.87,123.85,10.2453]
[1742326024660,18.49174873,123.87,123.84,274.67278823]
[1742326025855,26.56654873,123.87,123.84,274.67278823]
[1742326026055,26.56654873,123.87,123.85,8.0756]
[1742326026251,7.04706297,123.87,123.84,266.59678823]
[1742326026559,7.04706297,123.87,123.86,8.075]
[1742326027256,7.04706297,123.87,123.85,8.0754]
[1742326028262,7.04706297,123.87,123.86,8.075]
[1742326029463,7.04706297,123.87,123.85,8.0753]
[1742326030563,7.04706297,123.87,123.86,8.075]
[1742326030759,15.12146297,123.87,123.84,266.59678823]
[1742326030959,7.04706297,123.87,123.85,8.0754]
[1742326031863,15.12176297,123.87,123.85,8.0754]
[1742326032066,7.04706297,123.87,123.85,8.0754]
[1742326032362,7.04706297,123.87,123.86,8.075]
[1742326034264,29.16,123.9,123.88,8.0733]
[1742326034465,29.16,123.9,123.85,42.64338576]
[1742326034765,8.0725,123.9,123.85,42.64338576]
[1742326034965,40.60468576,123.91,123.85,42.64338576]
[1742326035357,0.06046387,123.89,123.87,8.12977316]
[1742326036154,8.13356387,123.89,123.87,8.12977316]
[1742326036354,0.06046387,123.89,123.87,0.05577316]
[1742326036561,8.0737,123.88,123.87,0.05577316]
[1742326036862,48.67838576,123.88,123.87,0.05577316]
[1742326041267,29.16,123.88,123.87,0.05577316]
[1742326041467,0.06046387,123.89,123.88,8.0737]
[1742326044770,8.13366387,123.89,123.87,8.12977316]
[1742326045672,0.06046387,123.89,123.88,8.0737]
[1742326052975,40.66514963,123.89,123.87,0.05577316]
[1742326053176,11.44468576,123.88,123.87,0.05577316]
[1742326053665,19.51838576,123.88,123.87,0.05577316]
[1742326060479,8.0764,123.84,123.81,266.4]
[1742326060684,37.2364,123.84,123.81,266.4]
[1742326060884,37.2364,123.84,123.82,8.0776]
[1742326060885,29.16,123.84,123.82,8.0776]
[1742326061284,29.16,123.84,123.81,266.4]
[1742326061585,29.21941958,123.84,123.81,266.45888867]
[1742326061986,29.21941958,123.84,123.83,8.077]
[1742326062286,0.05941958,123.84,123.83,8.077]
[1742326072494,0.05941958,123.84,123.83,19.52168576]
[1742326073494,0.05941958,123.84,123.83,8.077]
[1742326073887,29.21941958,123.84,123.82,10.2388]
[1742326074092,40.66410534,123.84,123.82,8.0773]
[1742326074895,40.66410534,123.84,123.83,8.077]
[1742326075496,29.21941958,123.84,123.83,8.077]
[1742326083298,29.21941958,123.84,123.81,266.45888867]
[1742326083901,29.21941958,123.84,123.83,8.077]
[1742326086104,0.05941958,123.84,123.83,8.077]
[1742326086304,29.16,123.86,123.85,8.0757]
[1742326086607,40.60468576,123.87,123.82,11.44468576]
[1742326086803,11.44468576,123.87,123.86,8.075]
[1742326087005,40.60468576,123.87,123.86,8.075]
[1742326087808,0.06030137,123.88,123.85,0.05802445]
[1742326088310,0.06030137,123.88,123.86,11.44468576]
[1742326088513,29.16,123.89,123.86,13.56938576]
[1742326088713,444.39335662,123.91,123.87,266.46]
[1742326088906,444.39335662,123.91,123.87,277.90468576]
[1742326088907,85.39335662,123.91,123.87,277.90468576]
[1742326089211,44.78867086,123.91,123.87,277.90468576]
[1742326089411,73.94867086,123.91,123.87,277.90468576]
[1742326089817,0.05467639,123.9,123.89,8.0731]
[1742326092416,0.05467639,123.9,123.89,19.51778576]
[1742326095118,11.19716771,123.97,123.89,48.68468576]
[1742326095311,11.19716771,123.97,123.94,11.44468576]
[1742326095510,11.19716771,123.97,123.95,266.4]
[1742326096216,11.25642495,123.97,123.95,266.45726831]
[1742326096415,11.25642495,123.97,123.96,8.0685]
[1742326097020,11.25642495,123.97,123.96,19.51318576]
[1742326097216,11.25642495,123.97,123.96,48.67318576]
[1742326097818,7.95302495,123.97,123.96,19.51318576]
[1742326098019,40.60468576,124.01,123.99,8.0662]
[1742326099026,8.063,124.05,124.0,8.0659]
[1742326099324,0.0572927,124.01,124.0,8.0659]
[1742326099622,11.50225299,124.02,123.99,8.12516092]
[1742326099823,11.44468576,124.01,123.99,8.12516092]
[1742326100011,11.44468576,124.0,123.99,0.05886092]
[1742326100524,40.58468576,124.0,123.99,0.05886092]
[1742326102723,48.65058576,124.0,123.99,0.05886092]
[1742326104630,8.0675,123.98,123.95,266.4]
[1742326104927,11.44468576,123.96,123.95,266.4]
[1742326106230,40.58468576,123.96,123.95,266.4]
[1742326106433,48.65318576,123.96,123.94,0.0511632]
[1742326106629,11.44468576,123.95,123.94,0.0511632]
[1742326108428,19.51388576,123.95,123.94,0.0511632]
[1742326117231,48.65358576,123.96,123.94,0.0511632]
[1742326117536,40.58468576,123.96,123.94,0.0511632]
[1742326117836,8.0692,123.95,123.94,0.0511632]
[1742326119334,29.14,123.96,123.94,8.1204632]
[1742326119534,11.50672564,123.97,123.94,8.1204632]
[1742326119735,40.64672564,123.97,123.94,8.1204632]
[1742326120136,40.64672564,123.97,123.95,8.0691]
[1742326120137,11.50672564,123.97,123.95,8.0691]
[1742326120633,40.64672564,123.97,123.94,8.1206632]
[1742326120827,11.44468576,123.96,123.94,0.0511632]
[1742326121230,40.64672564,123.97,123.94,0.0511632]
[1742326121638,40.64672564,123.97,123.94,8.1206632]
[1742326122226,11.44468576,123.95,123.94,0.0511632]
[1742326122432,40.58468576,123.95,123.94,0.0511632]
[1742326123437,40.58468576,123.95,123.94,8.1209632]
[1742326123738,29.14,123.95,123.94,8.1209632]
[1742326134343,11.44468576,123.96,123.95,8.0692]
[1742326135746,48.71472564,123.97,123.95,8.0692]
[1742326137346,40.64672564,123.97,123.96,8.0685]
[1742326137642,29.20203988,123.97,123.96,8.0685]
[1742326139847,37.26993988,123.97,123.95,8.0688]
[1742326140446,29.20203988,123.97,123.96,8.0685]
[1742326140647,0.06203988,123.97,123.96,8.0685]
[1742326142248,33.59150315,124.01,123.96,40.58468576]
[1742326142545,33.59150315,124.01,123.97,277.68468576]
[1742326143152,33.59150315,124.01,124.0,8.0659]
[1742326143445,45.03618891,124.01,123.99,0.06032827]
[1742326143751,11.44468576,124.0,123.99,0.06032827]
[1742326143942,19.51058576,124.0,123.99,0.06032827]
[1742326144245,11.44468576,124.0,123.99,0.06032827]
[1742326144440,11.44468576,124.0,123.99,8.12692827]
[1742326144944,19.51058576,124.0,123.99,0.06032827]
[1742326147652,40.58468576,124.01,123.99,8.12692827]
[1742326147852,40.58468576,124.01,123.99,0.06032827]
[1742326148053,29.14,124.01,124.0,8.0659]
[1742326149249,29.14,124.01,123.99,8.12652827]
[1742326149548,48.65008576,124.01,123.99,8.12652827]
[1742326149852,48.65008576,124.01,123.99,0.06032827]
[1742326150452,48.65008576,124.01,123.99,8.12682827]
[1742326151054,29.14,124.01,124.0,8.0659]
[1742326153354,0.06125728,124.02,124.0,8.0659]
[1742326153754,0.06125728,124.02,123.99,8.12662827]
[1742326154056,11.50594304,124.02,123.99,8.12662827]
[1742326154257,8.0653,124.01,123.99,8.12662827]
[1742326154963,19.57094304,124.02,123.99,8.12662827]
[1742326155460,8.0654,124.01,123.99,8.12662827]
[1742326156556,19.57094304,124.02,124.0,8.0658]
[1742326157258,11.50594304,124.02,123.99,0.06032827]
[1742326157459,11.44468576,124.01,123.99,0.06032827]
[1742326157757,40.56468576,124.01,123.99,0.06032827]
[1742326157952,19.51058576,124.0,123.99,0.06032827]
[1742326158958,11.44468576,124.0,123.99,0.06032827]